bitfinex/quotes_BTCUSD_20250414
["timestamp","ask_amount","ask_price","bid_price","bid_amount"]
[1744622487575,0.72298364,84738.0,84737.0,0.00090468]
[1744622487901,0.01554085,84736.0,84733.0,0.0004224]
[1744622488061,0.48466664,84736.0,84735.0,0.00092919]
[1744622488257,0.60539512,84736.0,84735.0,0.00092919]
[1744622488477,0.01454085,84714.0,84713.0,0.02]
[1744622488636,0.65758893,84714.0,84713.0,0.02046152]
[1744622488838,0.66587318,84714.0,84713.0,0.02046152]
[1744622489246,0.85474318,84714.0,84713.0,0.02046152]
[1744622489610,0.54503164,84714.0,84713.0,0.02046152]
[1744622489753,0.40547164,84714.0,84713.0,0.02146152]
[1744622490358,0.39718739,84714.0,84713.0,0.02146152]
[1744622491073,0.51802893,84714.0,84713.0,0.02146152]
[1744622491819,0.51802893,84714.0,84713.0,0.02246152]
[1744622492380,0.52959857,84714.0,84713.0,0.02246152]
[1744622493061,0.40875703,84714.0,84713.0,0.02246152]
[1744622493261,0.40875703,84714.0,84713.0,0.02046152]
[1744622496411,0.40875703,84714.0,84713.0,0.06676152]
[1744622497632,0.40875703,84714.0,84713.0,0.02046152]
[1744622499082,0.40875703,84714.0,84713.0,0.06596152]
[1744622499316,0.40875703,84714.0,84713.0,0.07677296]
[1744622500556,0.40875703,84714.0,84713.0,0.03127296]
[1744622501349,0.52959857,84714.0,84713.0,0.03127296]
[1744622502560,0.53159857,84714.0,84713.0,0.03127296]
[1744622502675,0.53259857,84714.0,84713.0,0.03127296]
[1744622503941,0.54081887,84714.0,84713.0,0.03127296]
[1744622505353,0.54081887,84714.0,84713.0,0.00188096]
[1744622505938,0.53981887,84714.0,84713.0,0.00188096]
[1744622506629,0.54581887,84714.0,84713.0,0.00288096]
[1744622506826,0.54381887,84714.0,84713.0,0.00288096]
[1744622507025,0.54781887,84714.0,84713.0,0.00288096]
[1744622520211,0.68741887,84714.0,84713.0,0.00288096]
[1744622520765,0.53327802,84714.0,84713.0,0.05218096]
[1744622521137,0.67287802,84714.0,84713.0,0.05218096]
[1744622521259,0.68741887,84714.0,84713.0,0.05218096]
[1744622521665,0.21203648,84714.0,84713.0,0.05218096]
[1744622521875,0.55203648,84714.0,84713.0,0.10008096]
[1744622522437,0.16338994,84714.0,84713.0,0.09908096]
[1744622522649,0.15938994,84714.0,84713.0,0.09908096]
[1744622522785,0.16438994,84714.0,84713.0,0.11014452]
[1744622523144,0.16238994,84714.0,84713.0,0.11014452]
[1744622523426,0.16338994,84714.0,84713.0,0.11014452]
[1744622523632,0.17393079,84714.0,84713.0,0.11014452]
[1744622523832,0.51593079,84714.0,84713.0,0.10276881]
[1744622524032,0.51993079,84714.0,84713.0,0.10276881]
[1744622524860,0.51993079,84714.0,84713.0,0.09908096]
[1744622525776,0.51793079,84714.0,84713.0,0.09908096]
[1744622526284,0.51993079,84714.0,84713.0,0.09908096]
[1744622527831,0.50538994,84714.0,84713.0,0.09908096]
[1744622528758,0.50138994,84714.0,84713.0,0.09908096]
[1744622529165,0.50438994,84714.0,84713.0,0.09908096]
[1744622529337,0.50238994,84714.0,84713.0,0.09908096]
[1744622529760,0.50438994,84714.0,84713.0,0.09908096]
[1744622530396,0.51893079,84714.0,84713.0,0.09908096]
[1744622531707,0.51893079,84714.0,84713.0,0.09812796]
[1744622531908,0.63977233,84714.0,84713.0,0.00092796]
[1744622533663,0.68241887,84714.0,84713.0,0.00092796]
[1744622543257,0.54281887,84714.0,84713.0,0.00092796]
[1744622543438,0.68233887,84714.0,84713.0,0.00092796]
[1744622546351,0.17885079,84714.0,84713.0,0.18980096]
[1744622546575,0.1527403,84714.0,84713.0,0.18980096]
[1744622546935,0.4927403,84714.0,84713.0,0.18980096]
[1744622547156,0.4907403,84714.0,84713.0,0.18980096]
[1744622547365,0.4877403,84714.0,84713.0,0.18980096]
[1744622548646,0.4907403,84714.0,84713.0,0.18980096]
[1744622549315,0.4917403,84714.0,84713.0,0.18980096]
[1744622550023,0.5032446,84714.0,84713.0,0.18980096]
[1744622559159,0.4950243,84714.0,84713.0,0.18980096]
[1744622559360,0.5033098,84714.0,84713.0,0.18980096]
[1744622560980,0.3637898,84714.0,84713.0,0.18980096]
[1744622561975,0.3637898,84714.0,84713.0,0.00092796]
[1744622566521,0.3637898,84714.0,84713.0,0.0046158]
[1744622567250,0.37833065,84714.0,84713.0,0.0046158]
[1744622567366,0.37833065,84714.0,84713.0,0.00092796]
[1744622569358,0.49917219,84714.0,84713.0,0.00092796]
[1744622573833,0.54747219,84714.0,84713.0,0.00092796]
[1744622573962,0.59011873,84714.0,84713.0,0.00092796]
[1744622574905,0.63131873,84714.0,84713.0,0.00092796]
[1744622575324,0.63931873,84714.0,84713.0,0.00092796]
[1744622575892,0.63631873,84714.0,84713.0,0.00092796]
[1744622576775,0.63631873,84714.0,84691.0,0.0008448]
[1744622576776,0.528919,84692.0,84691.0,0.0008448]
[1744622577019,0.528919,84692.0,84691.0,0.00089085]
[1744622577802,0.5372045,84692.0,84691.0,0.00089085]
[1744622578023,0.55174535,84692.0,84691.0,0.00189085]
[1744622578225,0.55174535,84692.0,84691.0,0.00489085]
[1744622580163,0.71523343,84692.0,84691.0,0.00489085]
[1744622580367,0.87077871,84692.0,84691.0,0.00489085]
[1744622580588,0.76063343,84692.0,84691.0,0.00489085]
[1744622580755,0.54347985,84683.0,84682.0,0.0004224]
[1744622580933,0.54347985,84683.0,84682.0,0.00048235]
[1744622580934,0.66432139,84683.0,84682.0,0.00048235]
[1744622581341,0.55176535,84683.0,84682.0,0.00048235]
[1744622581838,0.55476535,84683.0,84682.0,0.00048235]
[1744622582040,0.55776535,84683.0,84682.0,0.00048235]
[1744622582266,0.67860689,84683.0,84682.0,0.00048235]
[1744622585608,0.3542855,84683.0,84682.0,0.00048235]
[1744622585755,0.3542855,84683.0,84682.0,0.09608235]
[1744622586403,0.346,84683.0,84682.0,0.09608235]
[1744622587047,0.343,84683.0,84682.0,0.09608235]
[1744622587269,0.343,84683.0,84682.0,0.00048235]
[1744622587487,0.48038239,84683.0,84682.0,0.00048235]
[1744622587679,0.47738239,84683.0,84682.0,0.00048235]
[1744622588342,0.48763924,84683.0,84682.0,0.00048235]
[1744622592273,0.53028578,84683.0,84682.0,0.00048235]
[1744622593531,0.57528578,84683.0,84682.0,0.00048235]
[1744622594333,0.57528578,84683.0,84654.0,0.060012]
[1744622594334,0.189009,84652.0,84651.0,0.022]
[1744622594587,0.01454085,84637.0,84633.0,0.011815]
[1744622594788,0.34,84631.0,84628.0,0.0122384]
[1744622594958,0.529056,84631.0,84628.0,0.01270045]
[1744622595168,0.52906,84629.0,84628.0,0.00088445]
[1744622596465,0.34,84629.0,84628.0,0.00088445]
[1744622597040,0.34,84629.0,84628.0,0.00588445]
[1744622597224,0.35197724,84629.0,84628.0,0.00288445]
[1744622597583,0.35297724,84629.0,84628.0,0.00688445]
[1744622597984,0.54203724,84629.0,84628.0,0.00688445]
[1744622598189,0.35297724,84629.0,84628.0,0.00688445]
[1744622603726,0.35297724,84629.0,84628.0,0.05258445]
[1744622605973,0.341,84629.0,84628.0,0.10088445]
[1744622619184,0.34925796,84629.0,84628.0,0.10088445]
[1744622623819,0.34925796,84629.0,84628.0,0.05518445]
[1744622624114,0.53831796,84629.0,84628.0,0.05518445]
[1744622625282,0.53831796,84629.0,84628.0,0.00688445]
[1744622627068,0.56044999,84629.0,84628.0,0.00688445]
[1744622629028,0.53831796,84629.0,84628.0,0.00688445]
[1744622630332,0.55285881,84629.0,84628.0,0.00688445]
[1744622631509,0.67370035,84629.0,84628.0,0.00688445]
[1744622632021,0.69582552,84629.0,84628.0,0.00688445]
[1744622632444,0.74362552,84629.0,84628.0,0.00688445]
[1744622632865,0.78527206,84629.0,84628.0,0.00288445]
[1744622633206,0.78627206,84629.0,84628.0,0.00388445]
[1744622633613,0.83227206,84629.0,84628.0,0.00388445]
[1744622633816,0.83127206,84629.0,84628.0,0.00088445]
[1744622634467,0.83127206,84629.0,84628.0,0.00188445]
[1744622635035,0.80914689,84629.0,84628.0,0.00088445]
[1744622635238,0.81014689,84629.0,84628.0,0.00088445]
[1744622636557,0.70180604,84629.0,84628.0,0.00088445]
[1744622636721,0.71634689,84629.0,84628.0,0.00088445]
[1744622665298,0.76274689,84629.0,84628.0,0.00088445]
[1744622667194,0.88153596,84629.0,84628.0,0.00088445]
[1744622667607,0.76274689,84629.0,84628.0,0.00088445]
[1744622668660,0.84524887,84629.0,84628.0,0.00088445]
[1744622669279,0.54361685,84622.0,84621.0,0.022]
[1744622669481,0.74496037,84622.0,84621.0,0.0221385]
[1744622669759,0.91905582,84622.0,84621.0,5e-07]
[1744622670513,0.92005582,84622.0,84621.0,5e-07]
[1744622671144,0.80101833,84622.0,84621.0,5e-07]
[1744622671343,0.80201833,84622.0,84621.0,5e-07]
[1744622671549,0.54364985,84607.0,84606.0,0.0004226]
[1744622671865,0.71539589,84607.0,84606.0,0.00046872]
[1744622672358,0.72421605,84607.0,84606.0,0.00046872]
[1744622673065,0.72621605,84607.0,84606.0,0.00046872]
[1744622673267,0.71795809,84607.0,84606.0,0.00046872]
[1744622673487,0.72724053,84607.0,84606.0,0.00046872]
[1744622681116,0.72722946,84607.0,84606.0,0.00046872]
[1744622687234,0.72722946,84607.0,84606.0,0.04786872]
[1744622689558,0.72723492,84607.0,84606.0,0.04786872]
[1744622691550,0.72723492,84607.0,84606.0,0.00046872]
[1744622701783,0.76042042,84607.0,84606.0,0.00046872]
[1744622713577,0.54366585,84600.0,84599.0,0.0497]
[1744622713771,0.66450739,84600.0,84599.0,0.04980369]
[1744622714149,0.70596972,84600.0,84599.0,0.04980369]
[1744622714692,0.70596972,84600.0,84599.0,0.05080369]
[1744622718426,0.74861626,84600.0,84599.0,0.05080369]
[1744622719019,0.72649281,84600.0,84599.0,0.05080369]
[1744622722095,0.72649281,84600.0,84599.0,0.00110369]
[1744622724321,0.72649281,84600.0,84599.0,0.00010369]
[1744622726942,0.71751503,84600.0,84599.0,0.00010369]
[1744622728552,0.24213264,84600.0,84599.0,0.09530369]
[1744622729079,0.58213264,84600.0,84599.0,0.09530369]
[1744622729817,0.57107059,84600.0,84599.0,0.09530369]
[1744622733096,0.52842405,84600.0,84599.0,0.09530369]
[1744622741977,0.52842405,84600.0,84599.0,0.09530369]
[1744622742518,0.34827683,84600.0,84599.0,0.09530369]
[1744622742721,0.34827683,84600.0,84599.0,0.11814186]
[1744622744601,0.34827683,84600.0,84599.0,0.11175645]
[1744622744797,0.34827683,84600.0,84599.0,0.11075645]
[1744622745221,0.34827683,84600.0,84599.0,0.11175645]
[1744622749879,0.34827683,84600.0,84599.0,0.11914178]
[1744622756829,0.36281768,84600.0,84599.0,0.02394178]
[1744622757023,0.48365922,84600.0,84599.0,0.02394178]
[1744622757573,0.48365922,84600.0,84599.0,0.01655645]
[1744622757896,0.62217064,84600.0,84599.0,4.5e-07]
[1744622758086,0.529185,84573.0,84572.0,0.0004226]
[1744622758318,0.529185,84573.0,84572.0,0.00048266]
[1744622758319,0.55200268,84573.0,84572.0,0.00048266]
[1744622758516,0.67284422,84573.0,84572.0,0.00048266]
[1744622758716,0.68162752,84573.0,84572.0,0.00048266]
[1744622760056,0.68162752,84573.0,84572.0,0.00148266]
[1744622760399,0.68162752,84573.0,84572.0,0.00348266]
[1744622762233,0.69325705,84573.0,84572.0,0.00348266]
[1744622762435,0.73590359,84573.0,84572.0,0.00348266]
[1744622763912,0.90908953,84573.0,84572.0,0.00348266]
[1744622764172,0.54374185,84566.0,84565.0,0.00045236]
[1744622764371,0.54379085,84544.0,84543.0,0.0004222]
[1744622764503,0.70727893,84544.0,84543.0,0.00088479]
[1744622764846,0.71555576,84544.0,84543.0,0.00088479]
[1744622766524,0.71655576,84544.0,84543.0,0.00088479]
[1744622766931,0.71855576,84544.0,84543.0,0.00088479]
[1744622767126,0.71027893,84544.0,84543.0,0.00088479]
[1744622767332,0.71932622,84544.0,84543.0,0.00088479]
[1744622767966,0.39469383,84544.0,84543.0,0.19013679]
[1744622768269,0.40923468,84544.0,84543.0,0.00088479]
[1744622768427,0.59848468,84544.0,84543.0,0.00088479]
[1744622771978,0.59848468,84544.0,84543.0,0.19013679]
[1744622771979,0.40923468,84544.0,84543.0,0.19013679]
[1744622772180,0.40923468,84544.0,84543.0,0.00088479]
[1744622772627,0.39469383,84544.0,84543.0,0.00088479]
[1744622773104,0.40923468,84544.0,84543.0,0.00088479]
[1744622774995,0.39469383,84544.0,84543.0,0.00088479]
[1744622775191,0.04564654,84544.0,84543.0,0.00088479]
[1744622776194,0.04364654,84544.0,84543.0,0.00088479]
[1744622776622,0.04364654,84544.0,84543.0,0.00188479]
[1744622776818,0.04364654,84544.0,84543.0,0.00088479]
[1744622777041,0.04364654,84544.0,84543.0,0.00188479]
[1744622777201,0.04264654,84544.0,84543.0,0.00188479]
[1744622777862,0.04264654,84544.0,84543.0,0.00288479]
[1744622778151,0.04264654,84544.0,84543.0,0.00188479]
[1744622778333,0.04264654,84544.0,84543.0,0.00288479]
[1744622779930,0.351827,84552.0,84549.0,0.011827]
[1744622780961,0.352827,84552.0,84549.0,0.011827]
[1744622781298,0.354827,84552.0,84549.0,0.011827]
[1744622783264,0.544061,84552.0,84548.0,0.189239]
[1744622784124,0.011827,84551.0,84548.0,0.189239]
[1744622786521,0.012827,84551.0,84548.0,0.189239]
[1744622786725,0.013827,84551.0,84548.0,0.189239]
[1744622786943,0.008244,84550.0,84548.0,0.189239]
[1744622787190,0.008244,84550.0,84547.0,0.011827]
[1744622787191,0.34,84547.0,84543.0,0.00088479]
[1744622787422,0.18925,84544.0,84543.0,0.00088479]
[1744622787892,0.197494,84544.0,84543.0,0.00088479]
[1744622788141,0.55203485,84544.0,84543.0,0.00088479]
[1744622790329,0.55203485,84544.0,84543.0,0.00288479]
[1744622804173,0.55203485,84544.0,84543.0,0.00188479]
[1744622804970,0.55203485,84544.0,84543.0,0.00088479]
[1744622805424,0.55503485,84544.0,84543.0,0.00088479]
[1744622815458,0.72337639,84544.0,84543.0,0.00088479]
[1744622817965,0.20262264,84539.0,84538.0,0.0004222]
[1744622818141,0.32346418,84539.0,84538.0,0.00050411]
[1744622818528,0.67170818,84539.0,84538.0,0.00050411]
[1744622819323,0.67270818,84539.0,84538.0,0.00050411]
[1744622820321,0.71535472,84539.0,84538.0,0.00050411]
[1744622822234,0.84290503,84539.0,84538.0,1.1e-07]
[1744622822523,0.54383985,84522.0,84502.0,0.011834]
[1744622822768,0.54385585,84515.0,84500.0,0.060734]
[1744622823010,0.54385585,84515.0,84514.0,0.00046853]
[1744622823257,0.55209985,84515.0,84514.0,0.00046853]
[1744622823972,0.67294139,84515.0,84514.0,0.00046853]
[1744622824694,0.67294139,84515.0,84514.0,0.00146853]
[1744622824941,0.67294139,84515.0,84514.0,0.00246853]
[1744622825476,0.67294139,84515.0,84514.0,0.00146853]
[1744622825670,0.67294139,84515.0,84514.0,0.00246853]
[1744622826315,0.68194414,84515.0,84514.0,0.00246853]
[1744622826777,0.69351222,84515.0,84514.0,0.00246853]
[1744622831495,0.57267068,84515.0,84514.0,0.00246853]
[1744622831722,0.36881483,84515.0,84514.0,0.00246853]
[1744622831895,0.348244,84515.0,84514.0,0.05026853]
[1744622832131,0.34,84515.0,84514.0,0.05026853]
[1744622832657,0.34,84515.0,84514.0,0.00246853]
[1744622833311,0.529315,84515.0,84514.0,0.06212775]
[1744622833511,0.34,84515.0,84514.0,0.06212775]
[1744622833766,0.201144,84517.0,84514.0,0.06212775]
[1744622833924,0.011831,84517.0,84514.0,0.07395975]
[1744622834139,0.011831,84517.0,84514.0,0.06212775]
[1744622834549,0.201143,84517.0,84514.0,0.06112775]
[1744622834916,0.201143,84517.0,84514.0,0.06212775]
[1744622835778,0.189315,84516.0,84514.0,0.06212775]
[1744622835947,0.189315,84516.0,84514.0,0.06112775]
[1744622836274,0.21317646,84517.0,84514.0,0.06212775]
[1744622836655,0.189315,84515.0,84514.0,0.06212775]
[1744622836854,0.21317646,84517.0,84514.0,0.06212775]
[1744622837189,0.21317646,84517.0,84514.0,0.06112775]
[1744622837376,0.21317646,84517.0,84514.0,0.06212775]
[1744622837533,0.189315,84516.0,84514.0,0.06212775]
[1744622837727,0.189315,84516.0,84514.0,0.06112775]
[1744622837933,0.189315,84516.0,84514.0,0.06012775]
[1744622838139,0.189315,84516.0,84514.0,0.06112775]
[1744622840109,0.189315,84516.0,84514.0,0.06212775]
[1744622840768,0.189315,84516.0,84514.0,0.01642775]
[1744622842196,0.00823488,84515.0,84514.0,0.01642775]
[1744622842392,0.36277573,84515.0,84514.0,0.01642775]
[1744622842984,0.36277573,84515.0,84514.0,0.01542775]
[1744622843320,0.36277573,84515.0,84514.0,0.01642775]
[1744622843518,0.36277573,84515.0,84514.0,0.01542775]
[1744622843677,0.36277573,84515.0,84514.0,0.01642775]
[1744622843884,0.36243306,84515.0,84514.0,0.01642775]
[1744622851925,0.00789221,84515.0,84514.0,0.01642775]
[1744622855590,0.02243306,84515.0,84514.0,0.01642775]
[1744622862196,0.1432746,84515.0,84514.0,0.01642775]
[1744622862402,0.62691457,84515.0,84514.0,0.01642775]
[1744622862605,0.67281457,84515.0,84514.0,0.01642775]
[1744622862783,0.67281457,84515.0,84514.0,0.00802775]
[1744622862979,0.61772114,84515.0,84514.0,0.00802775]
[1744622863637,0.61772114,84515.0,84514.0,7.5e-07]
[1744622863811,0.61772114,84515.0,84504.0,0.0004224]
[1744622863812,0.59097785,84505.0,84504.0,0.0004224]
[1744622864007,0.54388485,84502.0,84495.0,8e-05]
[1744622864305,0.6726186,84502.0,84501.0,0.00213859]
[1744622865243,0.6776186,84502.0,84501.0,0.00313859]
[1744622867933,0.72026514,84502.0,84501.0,0.00313859]
[1744622868495,0.5994236,84502.0,84501.0,0.00313859]
[1744622868963,0.5994236,84502.0,84489.0,0.201206]
[1744622868964,0.01184,84459.0,84450.0,0.0468]
[1744622869138,0.01066054,84450.0,84447.0,0.0479]
[1744622869339,0.189463,84449.0,84447.0,0.0479]
[1744622869539,0.189463,84449.0,84447.0,0.04836285]
[1744622869938,0.19735521,84449.0,84447.0,0.04836285]
[1744622870550,0.189463,84449.0,84447.0,0.04836285]
[1744622870968,0.189463,84449.0,84447.0,0.05036285]
[1744622871195,0.35454085,84448.0,84447.0,0.00246285]
[1744622871397,0.35454085,84448.0,84447.0,0.00446285]
[1744622871398,0.47538239,84448.0,84447.0,0.00446285]
[1744622871704,0.35431447,84448.0,84447.0,0.00446285]
[1744622872084,0.35431447,84448.0,84447.0,0.00246285]
[1744622872287,0.36253221,84448.0,84447.0,0.00046285]
[1744622872489,0.37137598,84448.0,84447.0,0.00246285]
[1744622872812,0.37237598,84448.0,84447.0,0.00246285]
[1744622873147,0.68464487,84448.0,84393.0,0.001]
[1744622873329,0.68464487,84448.0,84362.0,0.4187]
[1744622873330,0.011845,84420.0,84414.0,0.0462]
[1744622873533,0.011844,84428.0,84419.0,0.201374]
[1744622873823,0.04264654,84447.0,84428.0,0.011844]
[1744622874036,0.011843,84435.0,84432.0,0.011843]
[1744622874180,0.011843,84433.0,84422.0,0.011845]
[1744622874381,0.011844,84428.0,84422.0,0.011845]
[1744622874626,0.202356,84428.0,84422.0,0.011845]
[1744622874927,0.189517,84425.0,84421.0,0.011845]
[1744622875128,0.011844,84426.0,84422.0,0.011845]
[1744622875428,0.011844,84425.0,84422.0,0.201368]
[1744622875586,0.011844,84426.0,84422.0,0.201368]
[1744622875790,0.011844,84424.0,84421.0,0.011845]
[1744622876603,0.189533,84418.0,84416.0,0.0005614]
[1744622876958,0.01454085,84429.0,84416.0,0.0005614]
[1744622876959,0.201344,84433.0,84422.0,0.189524]
[1744622877138,0.011843,84433.0,84429.0,0.011844]
[1744622877342,0.351843,84432.0,84429.0,0.011844]
[1744622877659,0.011843,84431.0,84427.0,0.011844]
[1744622878184,0.011844,84430.0,84427.0,0.011844]
[1744622879091,0.01454085,84442.0,84430.0,0.189505]
[1744622879315,0.011842,84439.0,84436.0,0.011843]
[1744622879550,0.011842,84439.0,84434.0,0.189497]
[1744622879551,0.011843,84437.0,84434.0,0.011843]
[1744622879756,0.011843,84437.0,84433.0,0.011843]
[1744622880154,0.34,84438.0,84434.0,0.20134]
[1744622880383,0.34,84438.0,84436.0,0.189492]
[1744622880520,0.002,84437.0,84436.0,0.201335]
[1744622880716,0.003,84437.0,84435.0,0.011843]
[1744622880965,0.001,84437.0,84435.0,0.011843]
[1744622881134,0.34,84441.0,84437.0,0.011843]
[1744622881340,0.351842,84441.0,84437.0,0.011843]
[1744622881695,0.05375593,84471.0,84441.0,0.189481]
[1744622881696,0.34,84443.0,84441.0,0.189481]
[1744622881896,0.201288,84456.0,84449.0,0.0452]
[1744622882026,0.011841,84452.0,84449.0,0.0452]
[1744622882432,0.201299,84452.0,84449.0,0.0452]
[1744622882641,0.011841,84452.0,84449.0,0.0452]
[1744622882842,0.351841,84452.0,84449.0,0.0452]
[1744622883408,0.35230038,84452.0,84449.0,0.0452]
[1744622883926,0.35330038,84452.0,84449.0,0.0452]
[1744622884182,0.35330038,84452.0,84449.0,0.057041]
[1744622884390,0.00145938,84452.0,84449.0,0.246502]
[1744622884540,0.00145938,84452.0,84450.0,0.189459]
[1744622884989,0.00145938,84452.0,84451.0,0.0494]
[1744622886242,0.00045938,84452.0,84451.0,0.0494]
[1744622886646,0.00245938,84452.0,84451.0,0.0494]
[1744622887169,0.00045938,84452.0,84451.0,0.0494]
[1744622887354,0.00245938,84452.0,84451.0,0.0494]
[1744622887856,0.00345938,84452.0,84451.0,0.0494]
[1744622889501,0.00345938,84452.0,84451.0,0.05176796]
[1744622889751,0.00345938,84452.0,84451.0,0.17024154]
[1744622889957,0.00345938,84452.0,84451.0,0.21900924]
[1744622890375,0.00245938,84452.0,84451.0,0.21900924]
[1744622890529,0.00045938,84452.0,84451.0,0.21900924]
[1744622890736,0.00045938,84452.0,84451.0,0.22000924]
[1744622890932,0.00145938,84452.0,84451.0,0.21864154]
[1744622891173,0.00045938,84452.0,84451.0,0.21764154]
[1744622891536,0.00145938,84452.0,84451.0,0.21864154]
[1744622892342,0.34,84475.0,84474.0,0.189407]
[1744622893796,0.341,84475.0,84474.0,0.190407]
[1744622893991,0.001,84475.0,84474.0,0.190407]
[1744622894564,0.001,84475.0,84474.0,0.19277426]
[1744622894768,0.001,84475.0,84474.0,0.31361556]
[1744622894976,0.001,84475.0,84474.0,0.31124854]
[1744622895185,0.001,84475.0,84474.0,0.36854356]
[1744622895823,0.001,84475.0,84474.0,0.36114854]
[1744622896054,0.001,84475.0,84474.0,0.36854342]
[1744622896826,0.002,84475.0,84474.0,0.37154342]
[1744622897028,0.000846,84486.0,84485.0,0.189382]
[1744622897370,0.000846,84486.0,84483.0,0.201221]
[1744622897567,0.000846,84486.0,84483.0,0.011836]
[1744622897770,0.011836,84485.0,84480.0,0.011837]
[1744622897928,0.011836,84484.0,84480.0,0.20123]
[1744622898127,0.011837,84479.0,84475.0,0.011837]
[1744622898357,0.011837,84480.0,84476.0,0.201239]
[1744622898557,0.011837,84480.0,84477.0,0.011837]
[1744622898756,0.011836,84482.0,84478.0,0.011837]
[1744622898936,0.189387,84483.0,84479.0,0.201233]
[1744622899136,0.011836,84484.0,84480.0,0.011837]
[1744622899335,0.011836,84482.0,84479.0,0.011837]
[1744622899539,0.011836,84484.0,84480.0,0.011837]
[1744622899737,0.011836,84485.0,84482.0,0.011836]
[1744622901450,0.011836,84485.0,84482.0,0.012836]
[1744622901671,0.000846,84486.0,84482.0,0.012836]
[1744622901672,0.000846,84486.0,84485.0,0.189382]
[1744622901871,0.000846,84486.0,84483.0,0.201223]
[1744622902275,0.000846,84486.0,84485.0,0.189382]
[1744622903148,0.000846,84486.0,84485.0,0.191382]
[1744622903454,0.001846,84486.0,84485.0,0.193382]
[1744622903943,0.001846,84486.0,84485.0,0.004]
[1744622907508,0.001846,84486.0,84485.0,0.00352393]
[1744622909320,0.001846,84486.0,84485.0,0.04892393]
[1744622918093,0.00146133,84486.0,84485.0,0.04892393]
[1744622922748,0.00146133,84486.0,84485.0,0.21953231]
[1744622923155,0.00146133,84486.0,84485.0,0.21716547]
[1744622923302,0.00146133,84486.0,84485.0,0.21953196]
[1744622923507,0.00146133,84486.0,84485.0,0.22782394]
[1744622923712,0.00146133,84486.0,84485.0,0.22630001]
[1744622925080,0.00146133,84486.0,84485.0,0.22830001]
[1744622925292,0.00046133,84486.0,84485.0,0.22630001]
[1744622925463,0.00146133,84486.0,84485.0,0.22930001]
[1744622925674,0.00146133,84486.0,84485.0,0.22430001]
[1744622925821,0.00146133,84486.0,84485.0,0.22730001]
[1744622926026,0.00246133,84486.0,84485.0,0.23130001]
[1744622926232,0.00046133,84486.0,84485.0,0.22430001]
[1744622926546,0.00146133,84486.0,84485.0,0.23230001]
[1744622926750,0.00146133,84486.0,84485.0,0.22730001]
[1744622927119,0.00246133,84486.0,84485.0,0.23230001]
[1744622928142,0.00246133,84486.0,84485.0,0.22930001]
[1744622928416,0.00246133,84486.0,84485.0,0.23330001]
[1744622932626,0.00246133,84486.0,84485.0,0.14050001]
[1744622946206,0.00246133,84486.0,84485.0,0.01965847]
[1744622947734,0.28684133,84486.0,84485.0,0.01965847]
[1744622947902,0.80487026,84486.0,84485.0,0.01965847]
[1744622948505,0.81311833,84486.0,84485.0,0.01965847]
[1744622949107,0.81311833,84486.0,84485.0,0.01565847]
[1744622949486,0.50289679,84486.0,84485.0,0.01565847]
[1744622949687,0.69227679,84486.0,84485.0,0.01565847]
[1744622949890,0.67773594,84486.0,84485.0,0.01565847]
[1744622950292,0.48835594,84486.0,84485.0,0.01565847]
[1744622950490,0.39335594,84486.0,84485.0,0.01565847]
[1744622950708,0.3507094,84486.0,84485.0,0.01565847]
[1744622951450,0.34246133,84486.0,84485.0,0.01565847]
[1744622961792,0.00246133,84486.0,84485.0,0.01565847]
[1744622963603,0.05126133,84486.0,84485.0,0.01565847]
[1744622966492,0.00246133,84486.0,84485.0,0.01565847]
[1744622974008,0.01069985,84486.0,84485.0,0.01565847]
[1744622974967,0.35069985,84486.0,84485.0,0.01565847]
[1744622976277,0.3652407,84486.0,84485.0,0.01565847]
[1744622976486,0.58038224,84486.0,84485.0,0.01565847]
[1744622977823,0.58138224,84486.0,84485.0,0.01565847]
[1744622978130,0.58038224,84486.0,84485.0,0.01565847]
[1744622978497,0.58138224,84486.0,84485.0,0.01565847]
[1744622987622,0.57938224,84486.0,84485.0,0.01065847]
[1744622988236,0.58238224,84486.0,84485.0,0.01165847]
[1744622990028,0.57938224,84486.0,84485.0,0.01065847]
[1744622990694,0.57838224,84486.0,84485.0,0.01065847]
[1744622990885,0.57838224,84486.0,84451.0,0.012263]
[1744622990886,0.189402,84476.0,84455.0,0.01184]
[1744622991085,0.66478439,84476.0,84454.0,0.01184]
[1744622991410,0.67302291,84476.0,84453.0,0.01184]
[1744622991596,0.67302291,84476.0,84452.0,0.011841]
[1744622991893,0.67302291,84476.0,84451.0,0.012263]
[1744622992295,0.67302291,84476.0,84451.0,0.000422]
[1744622992496,0.67402291,84476.0,84452.0,0.011841]
[1744622992707,0.67602291,84476.0,84475.0,0.0011387]
[1744622993138,0.72222291,84476.0,84475.0,0.0011387]
[1744622994783,0.73100716,84476.0,84475.0,0.0011387]
[1744623000535,0.7689433,84476.0,84475.0,0.0011387]
[1744623000780,0.8161433,84476.0,84475.0,0.0011387]
[1744623000980,0.77820716,84476.0,84475.0,0.0011387]
[1744623003009,0.67026631,84476.0,84475.0,0.0011387]
[1744623004019,0.68480716,84476.0,84475.0,0.0011387]
[1744623021113,0.35123852,84476.0,84475.0,0.0011387]
[1744623021313,0.35123852,84476.0,84475.0,0.1000387]
[1744623021691,0.01123852,84476.0,84475.0,0.10743584]
[1744623022148,0.01123852,84476.0,84475.0,0.10980337]
[1744623022732,0.01023852,84476.0,84475.0,0.10980337]
[1744623023021,0.011835,84490.0,84483.0,0.011836]
[1744623023231,0.011835,84490.0,84484.0,0.0474]
[1744623023647,0.34,84492.0,84485.0,0.0455]
[1744623023761,0.00823659,84491.0,84485.0,0.0455]
[1744623024445,0.011836,84488.0,84485.0,0.0455]
[1744623024651,0.011836,84488.0,84460.0,0.265214]
[1744623024652,0.201233,84480.0,84477.0,0.099]
[1744623024809,0.529402,84476.0,84475.0,0.0021387]
[1744623025010,0.66478439,84476.0,84475.0,0.0021387]
[1744623025211,0.66478439,84476.0,84475.0,0.0001387]
[1744623025415,0.67301413,84476.0,84475.0,0.0001387]
[1744623025833,0.48361213,84476.0,84475.0,0.0001387]
[1744623026043,0.48361213,84476.0,84475.0,0.0011387]
[1744623026235,0.48361213,84476.0,84475.0,0.0001387]
[1744623026384,0.36377059,84476.0,84475.0,0.0001387]
[1744623026592,0.34922974,84476.0,84475.0,0.0001387]
[1744623026793,0.34822974,84476.0,84475.0,0.0468387]
[1744623026999,0.34822974,84476.0,84475.0,0.0001387]
[1744623027360,0.34922974,84476.0,84475.0,0.0001387]
[1744623027563,0.35122974,84476.0,84475.0,0.0001387]
[1744623028304,0.35122974,84476.0,84475.0,0.0011387]
[1744623028503,0.35022974,84476.0,84475.0,0.0011387]
[1744623028677,0.35022974,84476.0,84475.0,0.0021387]